fUST/lending_fUST_20250309
["ID","MTS","AMOUNT","RATE_DAILY","PERIOD"]
[355747014,1741527041819,-500.0,0.00047123,120]
[355747015,1741527041829,-500.0,0.00047123,120]
[355747016,1741527041838,-738.88,0.00047123,120]
[355747017,1741527041847,-500.0,0.00047123,120]
[355747018,1741527041856,-500.0,0.00047123,120]
[355747019,1741527041866,-500.0,0.00047123,120]
[355747020,1741527041875,-500.0,0.00047123,120]
[355747021,1741527041884,-500.0,0.00047123,120]
[355747022,1741527041894,-500.0,0.00047123,120]
[355747023,1741527041903,-500.0,0.00047123,120]
[355747024,1741527041912,-390.59964402,0.00047123,120]
[355747025,1741527041921,-500.0,0.00047123,120]
[355747026,1741527041931,-500.0,0.00047123,120]
[355747027,1741527041940,-500.0,0.00047123,120]
[355747028,1741527041949,-500.0,0.00047123,120]
[355747029,1741527041959,-500.0,0.00047123,120]
[355747030,1741527041968,-500.0,0.00047123,120]
[355747031,1741527041979,-500.0,0.00047123,120]
[355747032,1741527041988,-500.0,0.00047123,120]
[355747033,1741527041997,-504.71869473,0.00047123,120]
[355747034,1741527042007,-500.0,0.00047123,120]
[355747035,1741527042017,-500.0,0.00047123,120]
[355747036,1741527042027,-500.0,0.00047123,120]
[355747037,1741527042036,-500.0,0.00047123,120]
[355747038,1741527042046,-500.0,0.00047123,120]
[355747039,1741527042056,-500.0,0.00047123,120]
[355747040,1741527042066,-500.0,0.00047123,120]
[355747041,1741527042075,-500.0,0.00047123,120]
[355747042,1741527042086,-500.0,0.00047123,120]
[355747043,1741527042096,-500.0,0.00047123,120]
[355747044,1741527042106,-182.89670673,0.00047123,120]
[355747045,1741527042116,-500.0,0.00047123,120]
[355747046,1741527042126,-500.0,0.00047123,120]
[355747047,1741527042135,-500.0,0.00047123,120]
[355747048,1741527042144,-500.0,0.00047123,120]
[355747049,1741527042153,-500.0,0.00047123,120]
[355747050,1741527042164,-500.0,0.00047123,120]
[355747051,1741527042174,-500.0,0.00047123,120]
[355747052,1741527042184,-531.19,0.00047123,120]
[355747053,1741527042194,-500.0,0.00047123,120]
[355747054,1741527042203,-529.44,0.00047123,120]
[355747055,1741527042213,-500.0,0.00047123,120]
[355747056,1741527042222,-500.0,0.00047123,120]
[355747057,1741527042232,-811.93,0.00047123,120]
[355747058,1741527042241,-500.0,0.00047123,120]
[355747059,1741527042251,-1232.22,0.00047123,120]
[355747060,1741527042260,-500.0,0.00047123,120]
[355747061,1741527042270,-500.0,0.00047123,120]
[355747063,1741527042279,-500.0,0.00047123,120]
[355747064,1741527042289,-4137.48,0.00047123,120]
[355747066,1741527042299,-500.0,0.00047123,120]
[355747069,1741527042308,-500.0,0.00047123,120]
[355747070,1741527042318,-500.0,0.00047123,120]
[355747071,1741527042327,-500.0,0.00047123,120]
[355747072,1741527042337,-500.0,0.00047123,120]
[355747073,1741527042347,-2853.72,0.00047123,120]
[355747074,1741527042357,-7019.36,0.00047123,120]
[355747075,1741527042367,-500.0,0.00047123,120]
[355747076,1741527042377,-1060.55,0.00047123,120]
[355747077,1741527042386,-500.0,0.00047123,120]
[355747078,1741527042395,-883.67,0.00047123,120]
[355747079,1741527042404,-500.0,0.00047123,120]
[355747080,1741527042414,-1640.43,0.00047123,120]
[355747081,1741527042423,-1063.95,0.00047123,120]
[355747082,1741527042433,-541.79860001,0.00047123,120]
[355747083,1741527042442,-500.0,0.00047123,120]
[355747085,1741527042452,-500.0,0.00047123,120]
[355747086,1741527042461,-500.0,0.00047123,120]
[355747087,1741527042471,-500.0,0.00047123,120]
[355747088,1741527042481,-500.0,0.00047123,120]
[355747089,1741527042491,-500.0,0.00047123,120]
[355747090,1741527042500,-997.86,0.00047123,120]
[355747091,1741527042510,-500.0,0.00047123,120]
[355747092,1741527042520,-500.0,0.00047123,120]
[355747093,1741527042530,-559.2282452,0.00047123,120]
[355747094,1741527042539,-500.0,0.00047123,120]
[355747095,1741527042549,-500.0,0.00047123,120]
[355747096,1741527042558,-500.0,0.00047123,120]
[355747097,1741527042568,-2162.29,0.00047123,120]
[355747098,1741527042578,-37384.52,0.00047123,7]
[355747099,1741527042590,-500.0,0.00047123,120]
[355747100,1741527042599,-500.0,0.00047123,120]
[355747101,1741527042609,-1007.13,0.00047123,120]
[355747102,1741527042619,-500.0,0.00047123,120]
[355747104,1741527042628,-389.443496,0.00047123,60]
[355747105,1741527042639,-1095.26,0.00047123,120]
[355747106,1741527042648,-500.0,0.00047123,120]
[355747107,1741527042657,-738.26,0.00047123,120]
[355747108,1741527042668,-538.5,0.00047123,120]
[355747109,1741527042677,-500.0,0.00047123,120]
[355747110,1741527042687,-500.0,0.00047123,120]
[355747112,1741527042697,-500.0,0.00047123,120]
[355747114,1741527042706,-610.49,0.00047123,120]
[355747116,1741527042715,-393.66954304,0.00047123,120]
[355747118,1741527042724,-500.0,0.00047123,120]
[355747119,1741527042733,-500.0,0.00047123,120]
[355747120,1741527042742,-1632.21,0.00047123,30]
[355747121,1741527042752,-602.29,0.00047123,120]
[355747122,1741527042761,-500.0,0.00047123,120]
[355747123,1741527042770,-534.89,0.00047123,120]
[355747124,1741527042780,-381.90354737,0.00047123,120]
[355747125,1741527042789,-500.0,0.00047123,120]
[355747126,1741527042799,-500.0,0.00047123,120]
[355747127,1741527042808,-500.0,0.00047123,120]
[355747128,1741527042817,-1222.94,0.00047123,120]
[355747129,1741527042827,-500.0,0.00047123,120]
[355747130,1741527042837,-500.0,0.00047123,120]
[355747131,1741527042846,-500.0,0.00047123,120]
[355747132,1741527042855,-500.0,0.00047123,120]
[355747133,1741527042865,-500.0,0.00047123,120]
[355747134,1741527042875,-2177.01,0.00047123,120]
[355747135,1741527042884,-500.0,0.00047123,120]
[355747136,1741527042894,-500.0,0.00047123,120]
[355747137,1741527042903,-12622.6,0.00047123,2]
[355747138,1741527042913,-500.0,0.00047123,120]
[355747139,1741527042922,-500.0,0.00047123,120]
[355747140,1741527042932,-500.0,0.00047123,120]
[355747141,1741527042941,-565.38,0.00047123,120]
[355747142,1741527042950,-500.0,0.00047123,120]
[355747143,1741527042959,-533.57113844,0.00047123,120]
[355747144,1741527042969,-500.0,0.00047123,2]
[355747145,1741527042978,-553.02,0.00047123,120]
[355747146,1741527042988,-500.0,0.00047123,120]
[355747148,1741527042997,-690.08,0.00047123,120]
[355747150,1741527043007,-150.0,0.00047173,10]
[355747152,1741527043016,-1000.0,0.00047227,6]
[355747153,1741527043025,-1000.0,0.00047364,6]
[355747154,1741527043035,-1000.0,0.00047501,6]
[355747155,1741527043045,-474.819265,0.00047573,2]
[355747156,1741527043056,-1000.0,0.00047638,6]
[355747157,1741527043148,-1000.0,0.00047671,2]
[355747158,1741527043158,-505.9057178,0.00047671,120]
[355747159,1741527043168,-500.0,0.00047671,120]
[355747160,1741527043177,-500.0,0.00047671,120]
[355747161,1741527043188,-500.0,0.00047671,120]
[355747162,1741527043198,-500.0,0.00047671,120]
[355747163,1741527043207,-500.0,0.00047671,120]
[355747164,1741527043217,-500.0,0.00047671,120]
[355747165,1741527043226,-500.0,0.00047671,120]
[355747166,1741527043235,-215.52369467,0.00047671,120]
[355747167,1741527043245,-500.0,0.00047671,120]
[355747168,1741527043254,-500.0,0.00047671,120]
[355747169,1741527043264,-500.0,0.00047671,120]
[355747170,1741527043273,-500.0,0.00047671,120]
[355747171,1741527043282,-500.0,0.00047671,120]
[355747172,1741527043291,-500.0,0.00047671,120]
[355747173,1741527043301,-500.0,0.00047671,120]
[355747174,1741527043310,-500.0,0.00047671,120]
[355747175,1741527043319,-500.0,0.00047671,120]
[355747176,1741527043328,-500.0,0.00047671,120]
[355747177,1741527043338,-500.0,0.00047671,120]
[355747178,1741527043347,-500.0,0.00047671,120]
[355747179,1741527043355,-500.0,0.00047671,120]
[355747180,1741527043365,-500.0,0.00047671,120]
[355747181,1741527043374,-785.13,0.00047671,120]
[355747182,1741527043384,-500.0,0.00047671,120]
[355747183,1741527043393,-500.0,0.00047671,120]
[355747184,1741527043403,-500.0,0.00047671,120]
[355747185,1741527043412,-500.0,0.00047671,120]
[355747186,1741527043422,-500.0,0.00047671,120]
[355747187,1741527043431,-541.86023066,0.00047671,120]
[355747188,1741527043441,-690.91,0.00047671,120]
[355747189,1741527043450,-500.0,0.00047671,120]
[355747190,1741527043459,-500.0,0.00047671,120]
[355747191,1741527043469,-500.0,0.00047671,120]
[355747192,1741527043478,-500.0,0.00047671,15]
[355747193,1741527043488,-3323.51,0.00047671,120]
[355747194,1741527043497,-500.0,0.00047671,120]
[355747195,1741527043507,-500.0,0.00047671,120]
[355747196,1741527043517,-681.57,0.00047671,120]
[355747197,1741527043526,-500.0,0.00047671,120]
[355747198,1741527043535,-500.0,0.00047671,120]
[355747199,1741527043545,-578.26325656,0.00047671,120]
[355747200,1741527043554,-500.0,0.00047671,120]
[355747201,1741527043564,-500.0,0.00047671,120]
[355747202,1741527043573,-1450.07,0.00047671,120]
[355747203,1741527043584,-770.07,0.00047671,120]
[355747204,1741527043598,-500.0,0.00047671,120]
[355747205,1741527043607,-500.0,0.00047671,120]
[355747206,1741527043617,-500.0,0.00047671,120]
[355747207,1741527043627,-500.0,0.00047671,120]
[355747208,1741527043637,-500.0,0.00047671,120]
[355747209,1741527043646,-545.30701607,0.00047671,120]
[355747210,1741527043655,-738.88,0.00047671,120]
[355747211,1741527043664,-500.0,0.00047671,120]
[355747212,1741527043675,-500.0,0.00047671,120]
[355747213,1741527043684,-500.0,0.00047671,120]
[355747214,1741527043693,-500.0,0.00047671,120]
[355747215,1741527043703,-500.0,0.00047671,120]
[355747216,1741527043712,-500.0,0.00047671,120]
[355747217,1741527043722,-500.0,0.00047671,120]
[355747218,1741527043731,-500.0,0.00047671,120]
[355747219,1741527043740,-409.66677847,0.00047671,120]
[355747220,1741527043749,-500.0,0.00047671,120]
[355747221,1741527043759,-500.0,0.00047671,120]
[355747222,1741527043768,-500.0,0.00047671,120]
[355747223,1741527043777,-500.0,0.00047671,120]
[355747224,1741527043786,-500.0,0.00047671,120]
[355747225,1741527043796,-500.0,0.00047671,120]
[355747226,1741527043805,-500.0,0.00047671,120]
[355747227,1741527043815,-500.0,0.00047671,120]
[355747228,1741527043824,-477.21766797,0.00047671,120]
[355747229,1741527043834,-500.0,0.00047671,120]
[355747230,1741527043843,-500.0,0.00047671,120]
[355747231,1741527043853,-500.0,0.00047671,120]
[355747232,1741527043862,-500.0,0.00047671,120]
[355747233,1741527043872,-500.0,0.00047671,120]
[355747234,1741527043882,-500.0,0.00047671,120]
[355747235,1741527043891,-500.0,0.00047671,120]
[355747236,1741527043900,-500.0,0.00047671,120]
[355747237,1741527043910,-500.0,0.00047671,120]
[355747238,1741527043919,-264.89655463,0.00047671,120]
[355747239,1741527043929,-578.30042123,0.00047671,120]
[355747240,1741527043938,-500.0,0.00047671,120]
[355747241,1741527043948,-500.0,0.00047671,120]
[355747242,1741527043957,-531.19,0.00047671,120]
[355747243,1741527043967,-500.0,0.00047671,120]
[355747244,1741527043977,-529.44,0.00047671,120]
[355747245,1741527043986,-500.0,0.00047671,120]
[355747246,1741527043995,-811.93,0.00047671,120]
[355747247,1741527044005,-500.0,0.00047671,120]
[355747248,1741527044014,-1232.22,0.00047671,120]
[355747249,1741527044024,-500.0,0.00047671,120]
[355747250,1741527044033,-500.0,0.00047671,120]
[355747251,1741527044043,-500.0,0.00047671,120]
[355747252,1741527044052,-4137.48,0.00047671,120]
[355747253,1741527044061,-500.0,0.00047671,120]
[355747254,1741527044071,-500.0,0.00047671,120]
[355747255,1741527044082,-999.0,0.00047671,120]
[355747256,1741527044095,-500.0,0.00047671,120]
[355747257,1741527044106,-500.0,0.00047671,120]
[355747258,1741527044116,-500.0,0.00047671,120]
[355747259,1741527044125,-2112.00756043,0.00047671,120]
[355747270,1741527047144,-741.71243957,0.00047671,120]
[355747271,1741527047154,-321.81154186,0.00047671,120]
[355747272,1741527047435,-500.0,0.00039999,31]
[355747273,1741527047445,-439.72259656,0.00039999,31]
[355747274,1741527047454,-258.5426971,0.00039999,31]
[355747275,1741527047464,-500.0,0.00046575,120]
[355747276,1741527047473,-500.0,0.00047123,120]
[355747277,1741527047566,-2866.4487426,0.00047671,120]
[355747278,1741527047579,-2935.64077927,0.00047671,120]
[355747279,1741527047594,-895.45893627,0.00047671,120]
[355747280,1741527047604,-1060.55,0.00047671,120]
[355747281,1741527047613,-500.0,0.00047671,120]
[355747282,1741527047623,-543.52537574,0.00047671,120]
[355747283,1741527047634,-883.67,0.00047671,120]
[355747284,1741527047643,-500.0,0.00047671,120]
[355747285,1741527047652,-1640.43,0.00047671,120]
[355747286,1741527047662,-1063.95,0.00047671,120]
[355747287,1741527047673,-500.0,0.00047671,120]
[355747288,1741527047683,-500.0,0.00047671,120]
[355747289,1741527047692,-500.0,0.00047671,120]
[355747290,1741527047702,-535.8583594,0.00047671,120]
[355747291,1741527047712,-500.0,0.00047671,120]
[355747292,1741527047722,-398.36327304,0.00047671,120]
[355747293,1741527047731,-997.86,0.00047671,120]
[355747294,1741527047741,-500.0,0.00047671,120]
[355747295,1741527047750,-522.22557138,0.00047671,120]
[355747296,1741527047760,-648.27996082,0.00047671,120]
[355747297,1741527047771,-500.0,0.00047671,120]
[355747298,1741527047780,-500.0,0.00047671,120]
[355747299,1741527047794,-2162.29,0.00047671,120]
[355747300,1741527047810,-37384.52,0.00047671,7]
[355747301,1741527047820,-521.40741155,0.00047671,120]
[355747302,1741527047830,-1007.13,0.00047671,120]
[355747303,1741527047841,-500.0,0.00047671,120]
[355747304,1741527047851,-1095.26,0.00047671,120]
[355747305,1741527047860,-500.0,0.00047671,120]
[355747306,1741527047870,-738.26,0.00047671,120]
[355747307,1741527047880,-538.5,0.00047671,120]
[355747308,1741527047889,-500.0,0.00047671,120]
[355747309,1741527047899,-500.0,0.00047671,120]
[355747310,1741527047909,-274.82,0.00047671,120]
[355747311,1741527047918,-610.49,0.00047671,120]
[355747312,1741527047928,-500.0,0.00047671,120]
[355747313,1741527047938,-500.0,0.00047671,120]
[355747314,1741527047948,-1632.21,0.00047671,30]
[355747315,1741527047958,-602.29,0.00047671,120]
[355747316,1741527047967,-500.0,0.00047671,120]
[355747317,1741527047977,-534.89,0.00047671,120]
[355747318,1741527047986,-500.0,0.00047671,120]
[355747319,1741527047996,-500.0,0.00047671,120]
[355747320,1741527048005,-500.0,0.00047671,120]
[355747321,1741527048016,-1222.94,0.00047671,120]
[355747322,1741527048026,-500.0,0.00047671,120]
[355747323,1741527048036,-500.0,0.00047671,120]
[355747324,1741527048046,-564.14245797,0.00047671,120]
[355747325,1741527048057,-500.0,0.00047671,120]
[355747326,1741527048067,-500.0,0.00047671,120]
[355747327,1741527048077,-2177.01,0.00047671,120]
[355747328,1741527048088,-500.0,0.00047671,120]
[355747329,1741527048098,-500.0,0.00047671,120]
[355747330,1741527048108,-12622.6,0.00047671,2]
[355747331,1741527048119,-500.0,0.00047671,120]
[355747332,1741527048128,-500.0,0.00047671,120]
[355747333,1741527048138,-500.0,0.00047671,120]
[355747334,1741527048147,-565.38,0.00047671,120]
[355747335,1741527048157,-500.0,0.00047671,120]
[355747336,1741527048167,-500.0,0.00047671,2]
[355747337,1741527048176,-553.02,0.00047671,120]
[355747338,1741527048185,-500.0,0.00047671,120]
[355747339,1741527048195,-690.08,0.00047671,120]
[355747340,1741527048206,-207.58865383,0.00047671,120]
[355747341,1741527048223,-292.41134617,0.00047671,120]
[355747342,1741527048234,-500.68651185,0.00047673,3]
[355747343,1741527048244,-538.20764763,0.00047679,2]
[355747344,1741527048255,-580.51,0.000477,30]
[355747345,1741527048264,-210.0,0.00047721,10]
[355747346,1741527048274,-1000.0,0.00047775,6]
[355747347,1741527048284,-2305.3297174,0.00047791,4]
[355747348,1741527048294,-241.35459028,0.000478,120]
[355747349,1741527048303,-150.0,0.00047824,30]
[355747350,1741527048313,-1000.0,0.00047912,6]
[355747351,1741527048324,-500.0,0.00048,120]
[355747352,1741527048334,-150.0,0.00048,2]
[355747353,1741527048344,-1000.0,0.00048049,6]
[355747354,1741527048353,-430.30016667,0.00048186,6]
[355747355,1741527048408,-344.46489065,0.00048186,6]
[355747356,1741527048756,-225.23494268,0.00048186,6]
[355747357,1741527048766,-500.0,0.00048191,120]
[355747358,1741527048776,-344.08841663,0.00048219,2]
[355747359,1741527049139,-655.91158337,0.00048219,2]
[355747360,1741527049149,-261.62236294,0.00048219,120]
[355747361,1741527049160,-500.0,0.00048219,120]
[355747362,1741527049169,-323.28639435,0.00048219,120]
[355747363,1741527049179,-404.63495848,0.00048219,120]
[355747364,1741527049190,-500.0,0.00048219,120]
[355747365,1741527049200,-500.0,0.00048219,120]
[355747366,1741527049210,-500.0,0.00048219,120]
[355747367,1741527049219,-500.0,0.00048219,120]
[355747368,1741527049229,-600.40312658,0.00048219,120]
[355747369,1741527049240,-568.78577038,0.00048219,120]
[355747370,1741527049250,-500.0,0.00048219,120]
[355747371,1741527049260,-500.0,0.00048219,120]
[355747372,1741527049270,-500.0,0.00048219,120]
[355747373,1741527049279,-500.0,0.00048219,120]
[355747374,1741527049288,-500.0,0.00048219,120]
[355747375,1741527049298,-500.0,0.00048219,120]
[355747376,1741527049307,-500.0,0.00048219,120]
[355747377,1741527049316,-500.0,0.00048219,120]
[355747378,1741527049325,-500.0,0.00048219,120]
[355747379,1741527049334,-785.13,0.00048219,120]
[355747380,1741527049344,-500.0,0.00048219,120]
[355747381,1741527049353,-500.0,0.00048219,120]
[355747382,1741527049362,-500.0,0.00048219,120]
[355747383,1741527049372,-500.0,0.00048219,120]
[355747384,1741527049382,-500.0,0.00048219,120]
[355747385,1741527049391,-690.91,0.00048219,120]
[355747386,1741527049400,-546.49354975,0.00048219,120]
[355747387,1741527049410,-500.0,0.00048219,120]
[355747388,1741527049419,-500.0,0.00048219,120]
[355747389,1741527049429,-500.0,0.00048219,15]
[355747390,1741527049438,-3323.51,0.00048219,120]
[355747391,1741527049447,-500.0,0.00048219,120]
[355747392,1741527049456,-500.0,0.00048219,120]
[355747393,1741527049465,-681.57,0.00048219,120]
[355747394,1741527049475,-500.0,0.00048219,120]
[355747395,1741527049484,-500.0,0.00048219,120]
[355747396,1741527049493,-500.0,0.00048219,120]
[355747397,1741527049502,-441.43562311,0.00048219,120]
[355747398,1741527049515,-58.56437689,0.00048219,120]
[355747399,1741527049525,-677.13532057,0.00048219,120]
[355747400,1741527049541,-772.93467943,0.00048219,120]
[355747401,1741527049551,-484.39539651,0.00048219,120]
[355747402,1741527049678,-500.0,0.00046575,120]
[355747403,1741527049688,-500.0,0.00046575,120]
[355747404,1741527049698,-589.64,0.00046575,120]
[355747405,1741527049708,-165.02283977,0.00047397,120]
[355747406,1741527049718,-189.44,0.00047781,10]
[355747407,1741527049728,-285.67460349,0.00048219,120]
[355747408,1741527049739,-500.0,0.00048219,120]
[355747409,1741527049748,-500.0,0.00048219,120]
[355747410,1741527049758,-500.0,0.00048219,120]
[355747411,1741527049768,-500.0,0.00048219,120]
[355747412,1741527049778,-228.22255674,0.00048219,120]
[355747413,1741527049909,-271.77744326,0.00048219,120]
[355747414,1741527049919,-738.88,0.00048219,120]
[355747415,1741527049928,-500.0,0.00048219,120]
[355747416,1741527049937,-500.0,0.00048219,120]
[355747417,1741527049947,-500.0,0.00048219,120]
[355747418,1741527049957,-500.0,0.00048219,120]
[355747419,1741527049966,-500.0,0.00048219,120]
[355747420,1741527049976,-500.0,0.00048219,120]
[355747421,1741527049986,-500.0,0.00048219,120]
[355747422,1741527049995,-347.223562,0.00048219,120]
[355747423,1741527050005,-500.0,0.00048219,120]
[355747424,1741527050015,-500.0,0.00048219,120]
[355747425,1741527050024,-500.0,0.00048219,120]
[355747426,1741527050033,-500.0,0.00048219,120]
[355747427,1741527050043,-500.0,0.00048219,120]
[355747428,1741527050053,-500.0,0.00048219,120]
[355747429,1741527050062,-500.0,0.00048219,120]
[355747430,1741527050134,-500.0,0.00048219,120]
[355747431,1741527050144,-453.58820572,0.00048219,120]
[355747432,1741527050153,-500.0,0.00048219,120]
[355747433,1741527050163,-500.0,0.00048219,120]
[355747434,1741527050172,-500.0,0.00048219,120]
[355747435,1741527050181,-500.0,0.00048219,120]
[355747436,1741527050191,-500.0,0.00048219,120]
[355747437,1741527050202,-377.05685849,0.00048219,120]
[355747438,1741527050212,-500.0,0.00048219,120]
[355747439,1741527050221,-556.64872581,0.00048219,120]
[355747440,1741527050231,-500.0,0.00048219,120]
[355747441,1741527050241,-500.0,0.00048219,120]
[355747442,1741527050251,-531.19,0.00048219,120]
[355747443,1741527050260,-529.44,0.00048219,120]
[355747444,1741527050270,-521.31139264,0.00048219,120]
[355747445,1741527050279,-811.93,0.00048219,120]
[355747446,1741527050288,-500.0,0.00048219,120]
[355747447,1741527050298,-1232.22,0.00048219,120]
[355747448,1741527050308,-500.0,0.00048219,120]
[355747449,1741527050317,-500.0,0.00048219,120]
[355747450,1741527050326,-500.0,0.00048219,120]
[355747451,1741527050335,-4137.48,0.00048219,120]
[355747452,1741527050344,-500.0,0.00048219,120]
[355747453,1741527050354,-500.0,0.00048219,120]
[355747454,1741527050364,-500.0,0.00048219,120]
[355747455,1741527050373,-500.0,0.00048219,120]
[355747456,1741527050383,-500.0,0.00048219,120]
[355747457,1741527050392,-2853.72,0.00048219,120]
[355747458,1741527050401,-7019.36,0.00048219,120]
[355747459,1741527050411,-500.0,0.00048219,120]
[355747460,1741527050420,-1060.55,0.00048219,120]
[355747461,1741527050430,-883.67,0.00048219,120]
[355747462,1741527050439,-500.0,0.00048219,120]
[355747463,1741527050448,-1640.43,0.00048219,120]
[355747464,1741527050458,-1063.95,0.00048219,120]
[355747465,1741527050467,-500.0,0.00048219,120]
[355747466,1741527050476,-500.0,0.00048219,120]
[355747467,1741527050486,-500.0,0.00048219,120]
[355747468,1741527050495,-583.88679605,0.00048219,120]
[355747469,1741527050505,-997.86,0.00048219,120]
[355747470,1741527050515,-500.0,0.00048219,120]
[355747471,1741527050524,-500.0,0.00048219,120]
[355747472,1741527050534,-500.0,0.00048219,120]
[355747473,1741527050543,-104.48580402,0.00048219,120]
[355747474,1741527050556,-2057.80419598,0.00048219,120]
[355747475,1741527050566,-704.48892068,0.00048219,7]
[355747476,1741527050584,-437.675324,0.00048219,7]
[355747477,1741527050599,-31106.42882373,0.00048219,7]
[355747478,1741527051055,2127.36500055,0.00028,10]
[355747479,1741527065394,2221.61718894,0.00028,10]
[355747480,1741527065429,651.01781051,0.00028,10]
[355747481,1741527803537,10000.0,0.0002502,2]
[355747482,1741527810910,2195.00220591,0.0002502,2]
[355747483,1741527816082,10000.0,0.0002502,2]
[355747484,1741527822909,10000.0,0.0002502,2]
[355747485,1741527853192,8350.0,0.0002502,2]
[355747486,1741527942584,7805.0,0.0002502,2]
[355747487,1741528040105,-688.96858921,0.0002802,2]
[355747488,1741528040131,-800.36938322,0.0002802,2]
[355747489,1741528040159,-208.283988,0.00028517,2]
[355747490,1741528040184,-208.283988,0.00029372,2]
[355747491,1741528040205,-320.4657677,0.00030018,2]
[355747492,1741528040235,-208.283988,0.00030228,2]
[355747493,1741528040259,-1174.85828551,0.000309,5]
[355747494,1741528040281,-184.3200936,0.00030941,2]
[355747495,1741528040303,-500.0,0.00031,10]
[355747496,1741528040325,-500.0,0.00031,10]
[355747497,1741528040347,-1285.1396612,0.00031069,2]
[355747498,1741528040368,-1207.57669279,0.0003129,2]
[355747499,1741528040389,-400.0,0.00031372,2]
[355747500,1741528040412,-500.0,0.00031373,5]
[355747501,1741528040435,-500.0,0.00031373,5]
[355747502,1741528040460,-500.0,0.00031373,2]
[355747503,1741528040482,-513.87258484,0.00031373,5]
[355747504,1741528040504,-500.0,0.00031373,5]
[355747505,1741528040527,-203.2,0.0003138,3]
[355747506,1741528040548,-500.0,0.00031389,2]
[355747507,1741528040571,-180.97988797,0.00031389,2]
[355747508,1741528040592,-500.77567982,0.00031389,2]
[355747509,1741528040615,-558.20050634,0.00031389,2]
[355747510,1741528040637,-500.0,0.00031389,2]
[355747511,1741528040660,-516.30948966,0.00031389,2]
[355747512,1741528040689,-1699.87889872,0.00031389,2]
[355747513,1741528040715,-500.0,0.00031389,2]
[355747514,1741528040740,-500.0,0.00031389,2]
[355747515,1741528040764,-500.0,0.00031389,2]
[355747516,1741528040793,-1699.87889872,0.00031389,2]
[355747517,1741528040833,-250.0,0.00031389,2]
[355747518,1741528040858,-500.0,0.00031389,2]
[355747519,1741528040886,-1699.87889872,0.00031389,2]
[355747520,1741528040913,-419.66290364,0.00031389,2]
[355747521,1741528052136,-964.35800718,0.0002802,2]
[355747522,1741528052159,-3061.7369021,0.00030386,2]
[355747523,1741528052184,-500.0,0.00031,10]
[355747524,1741528052206,-202.03575414,0.00031,10]
[355747525,1741528052230,-152.0,0.00031258,2]
[355747526,1741528052253,-213.58077432,0.00031289,2]
[355747527,1741528052275,-500.0,0.00031373,5]
[355747528,1741528052297,-80.33709636,0.00031389,2]
[355747529,1741528052320,-500.0,0.00031389,2]
[355747530,1741528052347,-1699.87889872,0.00031389,2]
[355747531,1741528052370,-500.0,0.00031389,2]
[355747532,1741528052393,-500.0,0.00031389,2]
[355747533,1741528052420,-1699.87889872,0.00031389,2]
[355747534,1741528052444,-500.0,0.00031389,2]
[355747535,1741528052471,-500.0,0.00031389,2]
[355747536,1741528052496,-500.0,0.00031389,2]